[Event "93rd German Championship 2022"]
[Site "Magdeburg"]
[Date "2022.08.20"]
[Round "9.8"]
[White "Gungl, Theo"]
[Black "Pajeken, Jakob Leon"]
[Result "0-1"]
[ECO "D20"]
[WhiteElo "2359"]
[BlackElo "2434"]
[Annotator "TA"]
[PlyCount "190"]
[EventDate "2022.08.14"]
[EventType "swiss"]
[EventCountry "GER"]
[SourceTitle "playchess.com"]
[Source "ChessBase"]
[SourceQuality "1"]
[TimeControl "40/5400+30:1800+30"]

{[%evp 9,190,-56,-64,-66,-49,-80,-2,-60,0,0,6,2,1,0,-4,7,0,0,-10,-13,14,-47,-40,-47,-14,-35,-12,-71,-83,-92,-92,-67,-35,-41,-11,-49,-45,-53,-37,-47,-37,-64,-62,-74,-68,-68,-45,-68,-87,-118,-118,-118,-118,-118,-118,-118,-118,-118,-118,-221,-211,-221,-221,-242,-242,-294,-68,-68,-68,-72,-68,-81,-68,-68,-88,-68,-68,-68,-68,-140,-156,-162,0,-162,-162,-279,-285,-303,0,-339,-282,-371,-59,-59,-59,-59,-59,-59,-59,-12,-12,-59,-59,-59,-59,-59,-59,-59,-59,-59,-59,-112,-59,-59,-59,-59,-59,-59,-59,-59,-59,-59,-59,-59,-59,-59,-59,-89,-91,-91,-91,-287,-59,-59,-59,-59,-59,-59,-59,-59,-59,-130,-130,-483,0,0,0,0,0,0,0,0,0,0,0,0,-8,0,-8,0,0,0,0,-8,-8,-8,-8,-8,-8,-8,0,-29971,-29972,-29971,-29973,-29974,-29975,-29981,-29982,-29982,-576,-29983,-29984]} 1. d4 {[%emt 0:00:03]} d5 {[%emt 0:00:03]} 2. c4 {[%emt 0:00:05]} dxc4 {[%emt 0:00:03]} 3. e4 {[%emt 0:00:11]} e5 {[%emt 0:00:04]} 4. d5 {[%emt 0:16:25]} Nf6 {[%emt 0:01:30]} 5. Nc3 {[%emt 0:07:57]} b5 $1 {[%emt 0:00:05]} 6. Bg5 {[%emt 0:03:11] D20: Queen's Gambit Accepted: 3 e3 and 3 e4.} Bc5 {[%emt 0:21:43]} 7. Qc2 {[%emt 0:04:12]} Bd7 {[%emt 0:11:18] [#]} (7... c6 $17 {[%cal Rc6d5]} 8. Nf3 O-O) 8. a4 $146 {[%emt 0:04:48]} (8. Nf3 $11) ({Predecessor:} 8. Nf3 Qe7 9. a4 b4 10. Nd1 O-O 11. Bxc4 Bg4 12. Nd2 Nbd7 13. O-O h6 14. Be3 Bxd1 15. Bxc5 Qxc5 16. Rfxd1 {1-0 (46) Prilepo,S-Baglaev,E (2138) Novokuznetsk 2007}) 8... b4 {[%emt 0:04:05]} (8... c6 $1 $15) 9. Nd1 $1 $11 {[%emt 0:00:47]} c3 {[%emt 0:03:15]} 10. bxc3 {[%emt 0:00:37]} O-O {[%emt 0:04:05]} 11. Nf3 {[%emt 0:02:15]} c6 {[%emt 0:02:56]} 12. Bc4 {[%emt 0:05:04]} h6 {[%emt 0:02:26]} (12... cxd5 {is more complex.} 13. exd5 Bg4 14. O-O Bxf3 15. gxf3 h6) 13. Bh4 {[%emt 0:09:21]} cxd5 {[%emt 0:06:23]} 14. Bxd5 {[%emt 0:00:11]} Bc6 {[%emt 0:00:17]} 15. Bxc6 {[%emt 0:02:37]} ({White should try} 15. O-O $11) 15... Nxc6 $15 {[%emt 0:00:04]} 16. O-O {[%emt 0:00:15]} Rc8 {[%emt 0:02:12]} 17. cxb4 {[%emt 0:06:54]} Bxb4 {[%emt 0:02:07]} 18. Qb2 {[%emt 0:04:17]} (18. Qb1 $11) 18... g5 $17 {[%emt 0:05:00]} 19. Bg3 {[%emt 0:00:15]} Nxe4 {[%emt 0:00:36]} 20. Nxe5 {[%emt 0:03:42]} Nxg3 {[%emt 0:00:58]} 21. hxg3 {[%emt 0:00:44]} Qd6 {[%emt 0:03:29]} (21... Bc5 $5 {[%cal Rc6e5]} 22. Nxc6 Rxc6 $15) 22. Rb1 {[%emt 0:08:56]} Bc5 {[%emt 0:00:52]} 23. Nxc6 {[%emt 0:01:16]} Rxc6 {[%emt 0:00:05][%cal Bc8c6,Bc6f6,Bf6f1][%mdl 32]} 24. Kh2 {[%emt 0:05:05]} Re8 {[%emt 0:04:08]} (24... h5 $5 {[%cal Rh5h4]} 25. Kg1 Qxg3 $17) 25. Qc2 {[%emt 0:04:16]} Bb6 {[%emt 0:01:49]} 26. Qf5 {[%emt 0:00:37][%cal Od1e3]} Re5 {[%emt 0:01:46]} 27. Qf3 {[%emt 0:00:33]} Qf6 {[%emt 0:04:00] 0x0.00144f0eadc4dp-1022s more active pieces.} (27... Qe6 {keeps more tension.} 28. Ne3 Bxe3 29. fxe3 Rxe3 30. Qf2 Rc7) 28. Qxf6 {[%emt 0:02:41]} Rxf6 {[%emt 0:00:04]} 29. Ne3 {[%emt 0:01:04]} Bxe3 {[%emt 0:01:17]} 30. fxe3 {[%emt 0:00:01]} Rxf1 {[%emt 0:01:04]} 31. Rxf1 {[%emt 0:00:01][%mdl 4096] Endgame KR-KR} Kg7 {[%emt 0:03:47] Prevents Rf6.} 32. Rd1 {[%emt 0:03:22]} Re4 {[%emt 0:00:18]} 33. a5 {[%emt 0:00:50]} Re5 $1 {[%emt 0:00:07]} 34. Rd7 {[%emt 0:01:30]} (34. g4 $17 {was called for.}) 34... Rxa5 $19 {[%emt 0:00:05]} 35. g4 {[%emt 0:01:55]} Ra3 $1 {[%emt 0:00:59]} 36. Rc7 {[%emt 0:00:32]} a5 {[%emt 0:02:52]} ({And not} 36... Rxe3 37. Rxa7 Rd3 38. Ra4 $17) 37. Ra7 {[%emt 0:00:02]} a4 $2 {[%emt 0:02:34]} ({Stronger than} 37... Rxe3 38. Rxa5 f6 39. Ra4 $17) (37... Kf6 $19 38. Kg1 Rxe3 39. Ra6+ Re6) 38. Ra6 $1 $15 {[%emt 0:00:42]} Ra1 {[%emt 0:01:12]} 39. Kg3 {[%emt 0:00:15]} a3 {[%emt 0:00:34]} 40. Kf2 {[%emt 0:00:17]} Kh7 {[%emt 0:01:58]} 41. Ra7 {[%emt 0:32:06]} Kg6 {[%emt 0:30:41]} 42. Ra6+ {[%emt 0:00:11]} Kg7 $1 {[%emt 0:00:04]} 43. Kg3 {[%emt 0:00:25]} Kf8 {[%emt 0:01:45]} 44. Kf2 {[%emt 0:00:35]} (44. Ra7 $1 $15) 44... Ra2+ {[%emt 0:00:25]} 45. Kf3 {[%emt 0:00:13]} Ra1 {[%emt 0:00:23]} 46. Kf2 $1 {[%emt 0:00:10]} Ke7 $1 {[%emt 0:02:35]} 47. e4 {[%emt 0:00:00]} (47. Rxh6 $142 f6 48. Rh8) 47... Kd7 {[%emt 0:00:00]} 48. Rf6 {[%emt 0:00:00]} Ke7 {[%emt 0:00:00]} 49. Ra6 {[%emt 0:00:00]} Kd8 {[%emt 0:00:00]} 50. Ra7 {[%emt 0:00:00]} f6 {[%emt 0:00:00]} (50... a2 $19 {Threatens to win with ...Kc8.} 51. Kg3 Kc8) 51. Ra6 $1 {[%emt 0:00:00]} a2 {[%emt 0:00:00]} 52. Ra7 {[%emt 0:00:00]} Kc8 $1 {[%emt 0:00:00]} 53. Ra3 {[%emt 0:00:00]} Kb7 $1 {[%emt 0:00:00]} 54. Ra4 {[%emt 0:00:00]} (54. Kg3 $15 Kb6 55. Kf2) 54... Kb6 $11 {[%emt 0:00:00]} 55. Ra8 {[%emt 0:00:00]} (55. Ra3 $1 $11 {is superior.} Kc5 56. Ra6) 55... Kc5 $15 {[%emt 0:00:00]} 56. Ra4 {[%emt 0:00:00]} Kb5 {[%emt 0:00:00]} 57. Ra8 {[%emt 0:00:00]} Kc4 {[%emt 0:00:00]} 58. Kg3 {[%emt 0:00:00]} Kd3 {[%emt 0:00:00]} 59. Ra4 {[%emt 0:00:00]} Ke3 {[%emt 0:00:00]} 60. Ra8 {[%emt 0:00:15]} Kxe4 {[%emt 0:00:00]} (60... Ke2 $1 $17 61. Ra3 Ke1) 61. Re8+ {[%emt 0:00:09]} Kd5 {[%emt 0:00:00]} 62. Ra8 {[%emt 0:00:14]} Ke6 {[%emt 0:00:00]} 63. Ra7 {[%emt 0:00:09]} Ke5 {[%emt 0:00:00]} 64. Ra5+ {[%emt 0:00:21]} Ke4 {[%emt 0:00:00]} 65. Ra4+ {[%emt 0:00:09]} Ke3 {[%emt 0:00:00]} 66. Ra6 {[%emt 0:01:53]} Ke2 {[%emt 0:00:00]} 67. Kh2 {[%emt 0:02:42]} Kd3 {[%emt 0:00:00]} 68. Kg3 {[%emt 0:00:11]} Kc4 {[%emt 0:00:00]} 69. Ra8 {[%emt 0:00:23]} Kb5 {[%emt 0:00:00]} 70. Ra7 {[%emt 0:00:21] [#]} Kb6 $2 {[%emt 0:00:00]} (70... Kb4 $1 $19 {...Kc3 is the strong threat.} 71. Rb7+ Kc3) 71. Ra8 {[%emt 0:00:12]} Kc7 {[%emt 0:00:00]} 72. Ra7+ {[%emt 0:00:14]} Kd8 {[%emt 0:00:00]} 73. Kh2 {[%emt 0:01:52]} Ke8 {[%emt 0:00:00]} 74. Kg3 {[%emt 0:01:03]} Kf8 {[%emt 0:00:00]} 75. Kh2 {[%emt 0:00:07] [#]} (75. Ra8+ $1 $15 Kf7 76. Kh2) 75... Kg8 $1 $17 {[%emt 0:00:00]} 76. g3 $2 {[%emt 0:00:32][%mdl 8192]} (76. Kg3 $17 {is a better chance.} Kf8 77. Ra8+ Ke7 78. Ra6) 76... h5 $2 {[%emt 0:00:00]} ({Better is} 76... Kf8 $19 77. Ra6 Ke8) 77. gxh5 $11 {[%emt 0:00:02]} f5 {[%emt 0:00:00]} 78. g4 {[%emt 0:00:27]} f4 {[%emt 0:00:00]} 79. Ra8+ $1 {[%emt 0:00:05]} Kg7 {[%emt 0:00:00]} (79... Kf7 $5 80. Ra7+ Kg8 81. Ra8+ Kf7 82. Ra7+ Ke6 $11) 80. Ra7+ $1 {[%emt 0:00:02]} Kf6 {[%emt 0:00:00]} (80... Kh8 $5 {[%cal Rf4f3]} 81. Ra8+ Kh7 82. Ra7+ Kh8 83. Ra8+ Kh7 84. Ra7+ Kh8 $11) 81. h6 {[%emt 0:02:10] White threatens h7 and mate.} Rb1 {[%emt 0:00:00]} 82. Rxa2 {[%emt 0:00:31]} ({But not} 82. Ra6+ Kf7 83. Rxa2 Kg6 $17) 82... Kg6 {[%emt 0:00:00]} 83. Ra6+ {[%emt 0:00:40]} Kh7 {[%emt 0:00:00]} 84. Ra7+ $1 {[%emt 0:02:48]} Kxh6 {[%emt 0:00:00] Strongly threatening ...Rb2+.} 85. Ra6+ {[%emt 0:00:07]} Kg7 {[%emt 0:00:00] And now ...Rb2+ would win.} 86. Ra5 {[%emt 0:00:41]} Kf6 {[%emt 0:00:00]} 87. Ra6+ $1 {[%emt 0:00:41]} Ke5 {[%emt 0:00:00] White must now prevent ...Rb2+.} 88. Ra5+ {[%emt 0:00:06]} Ke4 {[%emt 0:00:00] aiming for ...Re1.} 89. Rxg5 {[%emt 0:00:03]} f3 {[%emt 0:00:00] ( -> ...f2)} 90. Kg3 $2 {[%emt 0:01:19][%mdl 8192]} (90. Rf5 $11) 90... Rg1+ {[%emt 0:00:00]} 91. Kf2 {[%emt 0:00:07]} Rg2+ {[%emt 0:00:00]} 92. Kf1 {[%emt 0:00:13]} Ra2 {[%emt 0:00:00]} 93. Rf5 {[%emt 0:00:44]} Ke3 {[%emt 0:00:00][%cal Ra2a1]} 94. Kg1 {[%emt 0:01:30]} Ra1+ {[%emt 0:00:00]} 95. Kh2 {[%emt 0:00:06]} f2 {[%emt 0:00:00] Weighted Error Value: White=0.18 (very precise) /Black=0.34} 0-1

[Event "93rd German Championship 2022"]
[Site "Magdeburg"]
[Date "2022.08.20"]
[Round "9.9"]
[White "Florstedt, Johannes"]
[Black "Braun, Georg"]
[Result "1-0"]
[ECO "B12"]
[WhiteElo "2368"]
[BlackElo "2398"]
[Annotator "TA"]
[PlyCount "105"]
[EventDate "2022.08.14"]
[EventType "swiss"]
[EventCountry "GER"]
[SourceTitle "playchess.com"]
[Source "ChessBase"]
[SourceQuality "1"]
[TimeControl "40/5400+30:1800+30"]

{[%evp 9,105,4,37,30,20,22,42,0,44,35,54,20,45,23,30,26,60,39,37,14,0,11,36,16,27,34,45,29,54,54,66,50,59,51,54,66,71,68,71,34,73,54,93,78,73,74,108,108,122,98,99,107,153,140,157,130,130,116,202,155,329,209,211,162,304,193,165,165,300,284,544,543,825,757,1020,882,1094,1045,1282,1267,1196,1300,1572,1384,1670,1638,1493,1008,975,960,984,994,29968,29951,29983,29984,29984,29985]} 1. e4 {[%emt 0:00:03]} c6 {[%emt 0:01:33]} 2. d4 {[%emt 0:00:07]} d5 {[%emt 0:00:06]} 3. e5 {[%emt 0:00:04]} Bf5 {[%emt 0:00:11]} 4. h4 {[%emt 0:00:06]} Qc7 {[%emt 0:00:08]} 5. h5 {[%emt 0:00:23]} h6 {[%emt 0:00:16] [#]} (5... f6 $5 {[%cal Rf6e5]}) 6. Nc3 $146 {[%emt 0:04:28] B12: Caro-Kann: Advance Variation.} ({Predecessor:} 6. Bd3 Bxd3 7. Qxd3 e6 8. Ne2 c5 9. c3 Nc6 10. O-O Rc8 11. a3 Nge7 12. Nd2 {1-0 (30) Vokhidov,S (2536)-Jobava,B (2588) Chess.com INT 2022}) 6... e6 {[%emt 0:00:55]} 7. g4 {[%emt 0:00:06]} Bh7 {[%emt 0:00:08]} 8. Be3 {[%emt 0:01:55] White is slightly better.} Nd7 {[%emt 0:16:54]} 9. f4 {[%emt 0:06:42]} Bb4 {[%emt 0:05:01]} 10. Bd3 {[%emt 0:07:31]} Bxd3 {[%emt 0:08:49]} 11. cxd3 {[%emt 0:01:01]} Ne7 {[%emt 0:04:13]} 12. Nf3 {[%emt 0:10:44]} O-O-O {[%emt 0:04:57]} 13. Rc1 {[%emt 0:00:27]} (13. Kf2 {looks sharper.} Rdg8 14. Qb3 Qa5 15. Rag1) 13... Kb8 {[%emt 0:01:11]} 14. a3 {[%emt 0:00:05]} (14. Ke2 {is interesting.} Rdg8 15. Qb3 Qa5 16. a3) 14... Bxc3+ {[%emt 0:00:10]} 15. Rxc3 {[%emt 0:00:05]} Rdf8 {[%emt 0:15:56]} 16. Rc2 {[%emt 0:03:01]} Ka8 {[%emt 0:02:32]} 17. Bd2 {[%emt 0:11:25]} Qd8 {[%emt 0:01:24]} 18. Bb4 {[%emt 0:00:51]} Re8 {[%emt 0:07:13]} 19. Kd2 {[%emt 0:06:21][%cal Be1d2,Bd2c1,Bc1b1][%mdl 32]} Nb8 {[%emt 0:01:06]} 20. Kc1 {[%emt 0:00:48]} Na6 {[%emt 0:00:13]} 21. Bd2 {[%emt 0:02:54][%cal Bb4d2,Bd2e3,Be3f2,Bf2h4][%mdl 32]} Qb6 {[%emt 0:00:51]} 22. Kb1 {[%emt 0:02:34]} Rc8 {[%emt 0:02:43]} 23. Be3 {[%emt 0:00:20]} Qb5 {[%emt 0:01:28]} 24. b4 {[%emt 0:02:56]} Nb8 {[%emt 0:06:28]} 25. Bf2 {[%emt 0:05:21]} Rc7 {[%emt 0:02:14]} 26. Bh4 {[%emt 0:00:50][%cal Of4f5]} Nc8 {[%emt 0:00:42]} 27. Rc5 {[%emt 0:00:32]} Qa6 {[%emt 0:01:41]} 28. Qb3 {[%emt 0:01:48]} Nd7 {[%emt 0:01:01]} 29. Rc2 {[%emt 0:00:07] White is more active.} Ncb6 {[%emt 0:02:30]} 30. f5 {[%emt 0:01:53]} Qb5 {[%emt 0:00:26]} (30... Rcc8 $142) 31. Ka2 {[%emt 0:00:32]} Na4 {[%emt 0:00:33]} 32. Be1 {[%emt 0:09:21]} Rcc8 {[%emt 0:00:45]} 33. Nh4 {[%emt 0:00:59]} Rce8 {[%emt 0:00:42]} (33... Nf8 $16 {keeps fighting.}) 34. Rf1 {[%emt 0:00:36]} f6 $2 {[%emt 0:01:06] Black cannot hold the game after this.} (34... Rhg8 $16 {is a better defense.} 35. fxe6 fxe6) 35. Ng6 {[%emt 0:00:06]} Rhg8 {[%emt 0:00:20]} 36. Bg3 {[%emt 0:01:58]} Nf8 {[%emt 0:02:09]} (36... exf5 $142 37. Rxf5 (37. gxf5 fxe5 38. Bxe5 Nab6 $16) 37... a6) 37. Re2 {[%emt 0:02:32][%cal Bc2e2,Be2e5,Be5e7][%mdl 32]} exf5 {[%emt 0:03:49]} 38. gxf5 {[%emt 0:00:23]} Nxg6 {[%emt 0:01:25]} (38... Nh7 $142 39. e6 Ng5) 39. hxg6 $18 {[%emt 0:01:07] Threatens to win with Ree1.} fxe5 $2 {[%emt 0:02:03]} (39... Nb6 40. Rfe1 Nd7) 40. Rxe5 {[%emt 0:01:05]} Ref8 {[%emt 0:01:42]} 41. Re7 {[%emt 0:30:45]} Re8 {[%emt 0:09:08]} 42. Rfe1 {[%emt 0:00:00]} Ref8 {[%emt 0:04:28]} 43. Rf7 {[%emt 0:00:00]} Nb6 {[%emt 0:02:22]} 44. Ree7 {[%emt 0:00:00][%csl LRb7,LRg7]} Nc8 {[%emt 0:00:47]} 45. Rxf8 {[%emt 0:00:00]} Rxf8 {[%emt 0:00:07]} 46. Rxg7 {[%emt 0:00:00]} Qb6 {[%emt 0:01:53]} 47. Be5 {[%emt 0:00:00]} Qd8 {[%emt 0:00:25]} 48. Qc2 {[%emt 0:00:00][%cal Ob4b5] Strongly threatening b5!} Rxf5 {[%emt 0:01:46]} 49. Rf7 {[%emt 0:00:00]} Qg5 {[%emt 0:01:13]} 50. Rc7 {[%emt 0:00:00][%cal Rc7c8,Bf7c7,Bc7c6,Bc6b6,Bb6d6][%mdl 32]} Qd8 {[%emt 0:07:21] [#]} 51. Rxc6 $1 {[%emt 0:04:00][%mdl 512] White mates.} Nb6 {[%emt 0:03:59] [#]} (51... Ne7 52. Rd6) 52. Rxb6 $1 {[%emt 0:00:30][%mdl 512]} Rxe5 {[%emt 0:00:46]} 53. Rd6 {[%emt 0:00:23] Weighted Error Value: White=0.19 (very precise) /Black=0.47} 1-0

[Event "93rd German Championship 2022"]
[Site "Magdeburg"]
[Date "2022.08.20"]
[Round "9.10"]
[White "Dahl, Christoph"]
[Black "Colbow, Collin"]
[Result "0-1"]
[ECO "B48"]
[WhiteElo "2355"]
[BlackElo "2325"]
[Annotator "TA"]
[PlyCount "80"]
[EventDate "2022.08.14"]
[EventType "swiss"]
[EventCountry "GER"]
[SourceTitle "playchess.com"]
[Source "ChessBase"]
[SourceQuality "1"]
[TimeControl "40/5400+30:1800+30"]

{[%evp 11,80,22,47,19,23,28,37,48,45,26,31,0,7,-7,62,34,36,0,0,-61,-79,-43,-33,-265,-260,-254,-227,-253,-255,-254,-243,-236,-237,-427,-420,-416,-420,-415,-308,-295,-303,-293,-266,-281,-273,-274,-283,-274,-285,-268,-260,-267,-264,-389,-365,-465,-472,-464,-462,-495,-489,-621,-737,-733,-741,-733,-719,-715,-679,-610,-551]} 1. e4 {[%emt 0:00:08]} c5 {[%emt 0:00:31]} 2. Nf3 {[%emt 0:00:37]} e6 {[%emt 0:00:07]} 3. d4 {[%emt 0:00:39]} cxd4 {[%emt 0:00:05]} 4. Nxd4 {[%emt 0:00:06]} Nc6 {[%emt 0:00:08]} 5. Nc3 {[%emt 0:01:02]} Qc7 {[%emt 0:00:06]} 6. Be3 {[%emt 0:00:53]} a6 {[%emt 0:00:06]} 7. Qf3 {[%emt 0:00:58] B48: Sicilian: Taimanov: 5 Nc3 Qc7 6 Be3 a6 without Be2.} Nf6 {[%emt 0:00:41][%cal Of8a3]} 8. O-O-O {[%emt 0:01:48]} Ne5 {[%emt 0:00:24] 8...Rb8 is more advanced technology.} 9. Qg3 {[%emt 0:00:50] Black must now prevent f4. White is slightly better.} b5 {[%emt 0:00:31] Strongly threatening ...b4.} 10. a3 {[%emt 0:01:31]} (10. f4 $5 {[%cal Rf4e5]} Neg4 11. Bg1 $11) 10... Bb7 {[%emt 0:01:38]} 11. Bxb5 {[%emt 0:00:53][%cal Oh1e1] And now Rhe1! would win.} Rc8 $1 {[%emt 0:00:06]} (11... axb5 12. Ndxb5 Qb8 13. Bb6 $16) (11... Nxe4 12. Nxe4 Bxe4 13. Bxd7+ $1 Qxd7 14. Qxe5 $16) 12. Ba4 {[%emt 0:00:41][%cal Od4e6] [#] Nxe6! is the strong threat.} (12. Bf4 Nh5 13. Nxe6 (13. Bxe5 $2 Nxg3 14. Bxc7 Nxh1 $19) 13... fxe6 14. Bxe5 Nxg3 $17) 12... Bxa3 $1 {[%emt 0:01:09]} 13. Nde2 $14 {[%emt 0:29:56]} Be7 $1 {[%emt 0:01:05] [#]} 14. f3 $146 {[%emt 0:12:10]} (14. Qxg7 Rg8 15. Qh6 Qa5 $15) (14. Bd4 $5 {[%cal Rd4e5]} Nc6 15. Qxc7 (15. Qxg7 Rg8 $11) 15... Rxc7 16. Bxc6 Rxc6 17. e5 $11) ({Predecessor:} 14. Bd4 Nc6 15. e5 Nh5 16. Qg4 g6 17. Ng3 Ng7 18. Nce4 O-O 19. Nf6+ Bxf6 20. exf6 {1-0 (41) Le,Q (2715)-Munguntuul,B (2422) Douglas 2018}) 14... O-O {[%emt 0:07:18]} 15. Bh6 {[%emt 0:08:43]} (15. Kb1 $11) 15... Nh5 $15 {[%emt 0:13:40]} 16. Qh3 {[%emt 0:00:04]} Qa5 {[%emt 0:18:16]} (16... gxh6 17. Qxh5 Nc4 18. Qxh6 $11 (18. Rxd7 Bg5+ 19. Kb1 Qb6 $11)) 17. g4 $2 {[%emt 0:04:19] [#] Now White is beyond hope.} (17. Kb1 $1 $15 Nf6 18. Qg3) 17... Nf6 $1 $19 {[%emt 0:02:08]} (17... gxh6 18. gxh5 Kh8 19. Kb1 $17 (19. f4 $2 Bxe4 20. fxe5 Qxa4 $19)) 18. Bf4 {[%emt 0:01:57] [#]} Nxf3 $1 {[%emt 0:07:45][%mdl 512]} 19. Qxf3 {[%emt 0:01:59] [#]} Nxe4 $1 {[%emt 0:01:36][%mdl 576] Deflection} 20. Nxe4 {[%emt 0:03:53] aiming for Rd4.} Qxa4 {[%emt 0:00:21][%csl Gc8][%cal Ra4c2]} 21. N2c3 {[%emt 0:01:37]} Qa1+ {[%emt 0:07:05][%mdl 1024] Black has strong compensation.} 22. Nb1 $2 {[%emt 0:02:38]} (22. Kd2 {is the only way for White.} Qxb2 23. Qd3 Bxe4 24. Nxe4) 22... Rc4 {[%emt 0:10:13]} 23. Rhe1 {[%emt 0:01:25]} Rfc8 {[%emt 0:00:54][%csl Gc8][%cal Rc4c2] Really sharp!} 24. Rd2 {[%emt 0:08:09][%cal Oe4f6]} Qa4 {[%emt 0:01:54][%cal Rc4c2]} (24... Rb4 $2 25. Qa3 (25. c3 $2 f5 $19) 25... Qxa3 26. Nxa3 Bxe4 27. Bd6 Bxd6 28. Rxd6 $19) 25. b3 {[%emt 0:01:47] [#]} Rxe4 {[%emt 0:01:15]} 26. Rxe4 {[%emt 0:00:11]} Bxe4 {[%emt 0:04:38][%cal Bb7e4,Be4f3,Bf3g4][%mdl 32]} 27. bxa4 {[%emt 0:00:08]} Bxf3 {[%emt 0:00:04] This bishop pair is nice.} 28. Rxd7 {[%emt 0:00:06]} Bc5 {[%emt 0:00:43]} 29. Rd3 {[%emt 0:02:34]} Bxg4 {[%emt 0:04:39]} 30. Rc3 {[%emt 0:00:27]} e5 {[%emt 0:04:39]} 31. Bxe5 {[%emt 0:00:04]} f6 {[%emt 0:01:17][%cal Bf7f6,Bf6e5][%mdl 32]} 32. Rg3 {[%emt 0:01:16]} (32. Bg3 $142) 32... h5 {[%emt 0:00:43][%cal Bh7h5,Bh5h4][%mdl 32]} ({Avoid the trap} 32... fxe5 $2 33. Rxg4 Be3+ 34. Kb2 $19) 33. h3 {[%emt 0:02:23]} fxe5 {[%emt 0:01:16] Black is clearly winning.} 34. hxg4 {[%emt 0:00:05][%mdl 4096] Endgame KRB-KRN} h4 {[%emt 0:00:45]} 35. Rh3 {[%emt 0:00:08]} Be7 {[%emt 0:00:28]} 36. Na3 {[%emt 0:05:12]} Bxa3+ {[%emt 0:01:07]} 37. Rxa3 {[%emt 0:00:06]} Rc4 {[%emt 0:00:10]} 38. g5 {[%emt 0:00:09]} Rg4 {[%emt 0:01:57] Threatens to win with ...Rg3.} 39. Re3 {[%emt 0:00:45]} Rxg5 {[%emt 0:00:28]} 40. c4 {[%emt 0:00:05]} Kf7 {[%emt 0:00:49] Weighted Error Value: White=0.36/Black=0.08 (flawless)} 0-1

[Event "93rd German Championship 2022"]
[Site "Magdeburg"]
[Date "2022.08.20"]
[Round "9.11"]
[White "Feuerstack, Aljoscha"]
[Black "Keller, Peter"]
[Result "1-0"]
[ECO "E06"]
[WhiteElo "2473"]
[BlackElo "2377"]
[Annotator "TA"]
[PlyCount "85"]
[EventDate "2022.08.14"]
[EventType "swiss"]
[EventCountry "GER"]
[SourceTitle "playchess.com"]
[Source "ChessBase"]
[SourceQuality "1"]
[TimeControl "40/5400+30:1800+30"]

{[%evp 27,85,12,18,0,0,0,0,0,0,0,0,0,0,0,0,0,0,0,0,0,0,-54,-56,-51,-52,-107,-106,-106,-104,-105,-89,-112,-110,-118,-118,-118,-118,-116,-110,-129,-139,-152,-104,-100,-105,-224,-14,0,-6,-6,0,0,0,0,0,0,0,0,29993,868]} 1. d4 {[%emt 0:00:02]} Nf6 {[%emt 0:00:12]} 2. c4 {[%emt 0:00:06]} e6 {[%emt 0:00:06]} 3. g3 {[%emt 0:00:08]} d5 {[%emt 0:00:24]} 4. Bg2 {[%emt 0:00:08]} Be7 {[%emt 0:00:05]} 5. Nf3 {[%emt 0:00:15]} O-O {[%emt 0:00:07]} 6. O-O {[%emt 0:00:38]} dxc4 {[%emt 0:00:05]} 7. Qc2 {[%emt 0:00:18]} a6 {[%emt 0:00:13]} 8. a4 {[%emt 0:00:13]} Bd7 {[%emt 0:00:21][%cal Bc8d7,Bd7c6,Bc6d5,Bd5e4][%mdl 32]} 9. Qxc4 {[%emt 0:00:09]} Bc6 {[%emt 0:00:07]} 10. Bg5 {[%emt 0:00:17]} Bd5 {[%emt 0:00:14]} 11. Qc2 {[%emt 0:01:47]} Be4 {[%emt 0:00:06]} 12. Qb3 {[%emt 0:01:02]} Bd5 {[%emt 0:04:04]} 13. Qc2 {[%emt 0:00:10]} Be4 {[%emt 0:00:06]} 14. Qc1 {[%emt 0:00:05]} Nc6 {[%emt 0:01:20][%cal Bb8c6,Bc6d4,Bd4b3,Bb3c1][%mdl 32] 14...a5 is becoming the main line.} 15. Rd1 {[%emt 0:03:28] E05: Open Catalan: 5 Nf3 Be7.} Bxf3 {[%emt 0:10:09]} 16. Bxf3 {[%emt 0:00:15]} Nxd4 {[%emt 0:00:05]} 17. Kg2 {[%emt 0:07:49] Strongly threatening Qc4. The position is equal.} c5 {[%emt 0:03:27]} 18. e3 {[%emt 0:22:36]} Nb3 {[%emt 0:02:24][%csl LRa1,LRc1]} 19. Rxd8 {[%emt 0:01:12]} Nxc1 {[%emt 0:00:04] Pair of Knights!} 20. Rxa8 {[%emt 0:00:08]} Rxa8 {[%emt 0:00:04]} 21. Nd2 {[%emt 0:22:15] Prevents Nb3.} Nd3 {[%emt 0:03:29]} 22. Nc4 {[%emt 0:08:13] [#]} Rb8 $146 {[%emt 0:32:02]} ({Predecessor:} 22... h6 23. Bxf6 Bxf6 24. Bxb7 Rb8 25. Bxa6 Nxb2 26. Nxb2 Bxb2 27. Rd1 Ra8 28. Rd6 Bc3 29. Rc6 Kf8 30. Bb5 Bb4 {1-0 (66) Royal,S (2375)-Jeanne,M (2145) Vlissingen 2022}) 23. Rd1 {[%emt 0:12:52]} b5 {[%emt 0:00:24]} 24. Rxd3 {[%emt 0:00:29]} ({Only move:} 24. axb5 $11 axb5 25. Na5 Nxb2 26. Rb1) 24... bxc4 $15 {[%emt 0:00:05]} 25. Rd2 {[%emt 0:00:16]} Rb4 {[%emt 0:03:42][%cal Of6e4]} 26. Bc6 {[%emt 0:00:10] [#] Inhibits Ne4.} (26. a5 $15) 26... Ne4 $1 $17 {[%emt 0:08:00][%mdl 512]} 27. Bxe4 {[%emt 0:00:09]} Bxg5 {[%emt 0:00:06][%mdl 4096] Endgame KRB-KRB} 28. Bf3 {[%emt 0:01:18]} Rxa4 {[%emt 0:04:10]} 29. Rc2 {[%emt 0:05:04]} Bf6 $1 {[%emt 0:01:43]} 30. Be2 {[%emt 0:00:12] [#]} c3 $1 {[%emt 0:00:28]} 31. bxc3 {[%emt 0:07:39]} g6 {[%emt 0:00:13]} 32. Rb2 {[%emt 0:02:38]} Bxc3 {[%emt 0:00:56]} 33. Rb7 {[%emt 0:00:57]} a5 {[%emt 0:01:05]} 34. Rc7 {[%emt 0:00:52]} Bb4 {[%emt 0:05:20]} (34... Ra2 $142 35. Rxc5 Bb4 36. Rc8+ Kg7) 35. Bb5 {[%emt 0:00:20]} Ra1 {[%emt 0:00:05]} 36. Be8 {[%emt 0:00:40] [#]} (36. Ra7 $17) 36... f5 $2 {[%emt 0:00:38]} (36... Kf8 $1 $19 {[%cal Rf8e8]} 37. Bxf7 c4 38. Bxe6 c3) 37. Bf7+ $11 {[%emt 0:00:19]} Kh8 {[%emt 0:00:04]} 38. Bxe6 {[%emt 0:00:25]} a4 {[%emt 0:00:05]} 39. h4 {[%emt 0:02:55]} a3 {[%emt 0:07:44]} 40. Kf3 {[%emt 0:00:37]} Rd1 {[%emt 0:02:56]} 41. Kf4 {[%emt 0:12:33] Intending Kg5 and mate.} c4 {[%emt 0:05:32] aiming for ...Bd6+.} (41... Rd2 {leads to mate.} 42. Kg5 Ba5 43. Rb7 Rb2 44. Ra7 h5 45. Kxg6) 42. Kg5 $1 {[%emt 0:01:39] Rc8+ would kill now.} ({Not} 42. Rc8+ $2 Kg7 43. Bxc4 Rc1 44. Rg8+ Kf6 $19) 42... Ba5 $2 {[%emt 0:00:55][%mdl 8192]} (42... a2 {is a self mate.} 43. Rc8+) (42... Rd8 $11 43. Bxc4 Re8) 43. Rf7 {[%emt 0:00:52] White used his chance.  Weighted Error Value: White=0.11 (very precise) /Black=0.40} (43. Rb7 $142 Rb1 44. Ra7 Bd8+ 45. Kh6 Bg5+ 46. Kxg5 Rd1 47. Ra8+ Rd8 48. Rxd8+ Kg7 49. Rg8#) 1-0